[Event "Titled Tuesday Blitz June 6 Early 2023"]
[White "Manukyan, Sargis V."]
[Black "Ramirez Vido, Robert Yorisan"]
[WhiteFideId "13303465"]
[BlackFideId "3513823"]
[WhiteElo "2236"]
[BlackElo "2459"]
[Result "1-0"]
[Round "6"]
[TimeControl "180+2"]
[Date "2023.06.06"]
[WhiteClock "0:00:33"]
[BlackClock "0:00:01"]
[Board "70"]

1. d4 {[%clk 0:02:33]}  g6 {[%clk 0:02:57]} 2. c4 {[%clk 0:02:31]}  Nf6 {[%clk 0:02:56]} 3. Nc3 {[%clk 0:02:31]}  Bg7 {[%clk 0:02:55]} 4. e4 {[%clk 0:02:32]}  d6 {[%clk 0:02:54]} 5. Be2 {[%clk 0:02:32]}  O-O {[%clk 0:02:54]} 6. Nf3 {[%clk 0:02:33]}  Na6 {[%clk 0:02:54]} 7. Be3 {[%clk 0:02:32]}  e5 {[%clk 0:02:52]} 8. O-O {[%clk 0:02:31]}  Bg4 {[%clk 0:02:44]} 9. d5 {[%clk 0:02:23]}  Nh5 {[%clk 0:02:31]} 10. h3 {[%clk 0:02:16]}  Bxf3 {[%clk 0:02:20]} 11. Bxf3 {[%clk 0:02:15]}  Nf4 {[%clk 0:02:20]} 12. Kh2 {[%clk 0:02:12]}  Qd7 {[%clk 0:02:14]} 13. Rb1 {[%clk 0:02:08]}  f5 {[%clk 0:02:11]} 14. b4 {[%clk 0:02:07]}  Rae8 {[%clk 0:02:04]} 15. Qd2 {[%clk 0:02:04]}  b6 {[%clk 0:01:42]} 16. Qc2 {[%clk 0:01:57]}  fxe4 {[%clk 0:01:35]} 17. Bxe4 {[%clk 0:01:35]}  Nb8 {[%clk 0:01:26]} 18. c5 {[%clk 0:01:32]}  Qf7 {[%clk 0:01:18]} 19. c6 {[%clk 0:01:25]}  Nxc6 {[%clk 0:01:07]} 20. dxc6 {[%clk 0:01:23]}  d5 {[%clk 0:01:07]} 21. Bxf4 {[%clk 0:01:09]}  dxe4 {[%clk 0:00:51]} 22. Be3 {[%clk 0:01:03]}  Kh8 {[%clk 0:00:43]} 23. Qxe4 {[%clk 0:01:01]}  Qe6 {[%clk 0:00:24]} 24. Nd5 {[%clk 0:00:57]}  Rf7 {[%clk 0:00:22]} 25. b5 {[%clk 0:00:55]}  Ref8 {[%clk 0:00:19]} 26. Rbd1 {[%clk 0:00:54]}  Qc8 {[%clk 0:00:10]} 27. a4 {[%clk 0:00:54]}  a6 {[%clk 0:00:10]} 28. Qg4 {[%clk 0:00:53]}  Qa8 {[%clk 0:00:08]} 29. Qh4 {[%clk 0:00:39]}  axb5 {[%clk 0:00:06]} 30. axb5 {[%clk 0:00:37]}  Qa2 {[%clk 0:00:06]} 31. Ne7 {[%clk 0:00:35]}  Qe6 {[%clk 0:00:01]} 32. Rd7 {[%clk 0:00:33]} 1-0


[Site "https://www.chess.com"]

[Event "Titled Tuesday Blitz June 6 Early 2023"]
[White "Hristodoulou, Panagiotis"]
[Black "Gubajdullin, Alexei"]
[WhiteFideId "4214340"]
[BlackFideId "4141202"]
[WhiteElo "2272"]
[BlackElo "2279"]
[Result "1-0"]
[Round "6"]
[TimeControl "180+2"]
[Date "2023.06.06"]
[WhiteClock "0:00:04"]
[BlackClock "0:00:01"]
[Board "72"]

1. e4 {[%clk 0:03:00]}  g6 {[%clk 0:02:58]} 2. d4 {[%clk 0:03:00]}  Bg7 {[%clk 0:02:58]} 3. Nc3 {[%clk 0:03:01]}  d6 {[%clk 0:02:58]} 4. Be3 {[%clk 0:03:01]}  c6 {[%clk 0:02:58]} 5. Qd2 {[%clk 0:02:51]}  b5 {[%clk 0:02:56]} 6. f3 {[%clk 0:02:43]}  b4 {[%clk 0:02:53]} 7. Nce2 {[%clk 0:02:42]}  a5 {[%clk 0:02:49]} 8. h4 {[%clk 0:02:43]}  h5 {[%clk 0:02:48]} 9. Nh3 {[%clk 0:02:42]}  Nf6 {[%clk 0:02:48]} 10. Ng5 {[%clk 0:02:42]}  O-O {[%clk 0:02:47]} 11. Nf4 {[%clk 0:02:42]}  Qc7 {[%clk 0:02:41]} 12. a3 {[%clk 0:02:40]}  e5 {[%clk 0:02:22]} 13. dxe5 {[%clk 0:02:35]}  dxe5 {[%clk 0:02:22]} 14. Nd3 {[%clk 0:02:36]}  bxa3 {[%clk 0:02:15]} 15. Rxa3 {[%clk 0:02:36]}  Rd8 {[%clk 0:02:07]} 16. Qf2 {[%clk 0:02:29]}  Nbd7 {[%clk 0:02:04]} 17. Be2 {[%clk 0:02:24]}  Ba6 {[%clk 0:02:04]} 18. O-O {[%clk 0:02:22]}  Bf8 {[%clk 0:02:03]} 19. Ra2 {[%clk 0:02:20]}  c5 {[%clk 0:02:01]} 20. f4 {[%clk 0:01:40]}  Bxd3 {[%clk 0:01:48]} 21. cxd3 {[%clk 0:01:37]}  exf4 {[%clk 0:01:45]} 22. Bxf4 {[%clk 0:01:37]}  Bd6 {[%clk 0:01:45]} 23. Bxd6 {[%clk 0:01:10]}  Qxd6 {[%clk 0:01:44]} 24. Ra4 {[%clk 0:01:11]}  Kg7 {[%clk 0:01:39]} 25. e5 {[%clk 0:00:55]}  Qxe5 {[%clk 0:01:33]} 26. Rf4 {[%clk 0:00:54]}  Re8 {[%clk 0:01:05]} 27. Ne4 {[%clk 0:00:50]}  Re6 {[%clk 0:01:05]} 28. g4 {[%clk 0:00:22]}  hxg4 {[%clk 0:00:47]} 29. Bxg4 {[%clk 0:00:15]}  Nxg4 {[%clk 0:00:47]} 30. Rxg4 {[%clk 0:00:16]}  Rf8 {[%clk 0:00:22]} 31. Rg5 {[%clk 0:00:14]}  Qc7 {[%clk 0:00:18]} 32. h5 {[%clk 0:00:13]}  c4 {[%clk 0:00:18]} 33. h6+ {[%clk 0:00:11]}  Kh7 {[%clk 0:00:17]} 34. Rd5 {[%clk 0:00:09]}  Rxe4 {[%clk 0:00:17]} 35. dxe4 {[%clk 0:00:10]}  Kxh6 {[%clk 0:00:12]} 36. Qf4+ {[%clk 0:00:06]}  Qxf4 {[%clk 0:00:12]} 37. Rxf4 {[%clk 0:00:07]}  Nb6 {[%clk 0:00:11]} 38. Rxa5 {[%clk 0:00:07]}  Rd8 {[%clk 0:00:10]} 39. Rxf7 {[%clk 0:00:07]}  Rd1+ {[%clk 0:00:09]} 40. Kg2 {[%clk 0:00:07]}  Rd2+ {[%clk 0:00:09]} 41. Rf2 {[%clk 0:00:08]}  Rd4 {[%clk 0:00:08]} 42. Rb5 {[%clk 0:00:08]}  Nd7 {[%clk 0:00:08]} 43. Rd5 {[%clk 0:00:08]}  Rxd5 {[%clk 0:00:05]} 44. exd5 {[%clk 0:00:09]}  Kg7 {[%clk 0:00:05]} 45. d6 {[%clk 0:00:09]}  Nc5 {[%clk 0:00:05]} 46. Rc2 {[%clk 0:00:07]}  Kf6 {[%clk 0:00:04]} 47. Rxc4 {[%clk 0:00:07]}  Nd7 {[%clk 0:00:03]} 48. Kg3 {[%clk 0:00:05]}  Ke6 {[%clk 0:00:03]} 49. Rd4 {[%clk 0:00:05]}  g5 {[%clk 0:00:03]} 50. Kg4 {[%clk 0:00:04]}  Ne5+ {[%clk 0:00:03]} 51. Kg3 {[%clk 0:00:04]}  Kd7 {[%clk 0:00:03]} 52. Rd1 {[%clk 0:00:04]}  Kc6 {[%clk 0:00:03]} 53. b4 {[%clk 0:00:04]}  Nd7 {[%clk 0:00:02]} 54. Kg4 {[%clk 0:00:04]}  Kb5 {[%clk 0:00:01]} 55. Kxg5 {[%clk 0:00:04]}  Kxb4 {[%clk 0:00:01]} 56. Kf5 {[%clk 0:00:04]} 1-0


[Site "https://www.chess.com"]

[Event "Titled Tuesday Blitz June 6 Early 2023"]
[White "Fiorito, Joaquin"]
[Black "ArchibaldCerveza29"]
[WhiteFideId "180173"]
[WhiteElo "2199"]
[BlackElo "2440"]
[Result "1-0"]
[Round "6"]
[TimeControl "180+2"]
[Date "2023.06.06"]
[WhiteClock "0:00:14"]
[BlackClock "0:00:02"]
[Board "73"]

1. d4 {[%clk 0:03:00]}  d5 {[%clk 0:02:55]} 2. c4 {[%clk 0:03:01]}  e6 {[%clk 0:02:53]} 3. Nc3 {[%clk 0:03:01]}  Nf6 {[%clk 0:02:50]} 4. cxd5 {[%clk 0:03:01]}  exd5 {[%clk 0:02:51]} 5. Bg5 {[%clk 0:03:01]}  c6 {[%clk 0:02:50]} 6. e3 {[%clk 0:03:01]}  h6 {[%clk 0:02:50]} 7. Bf4 {[%clk 0:02:55]}  Bd6 {[%clk 0:02:49]} 8. Bxd6 {[%clk 0:02:54]}  Qxd6 {[%clk 0:02:50]} 9. Nf3 {[%clk 0:02:54]}  O-O {[%clk 0:02:48]} 10. h3 {[%clk 0:02:54]}  Re8 {[%clk 0:02:49]} 11. Bd3 {[%clk 0:02:54]}  a5 {[%clk 0:02:47]} 12. O-O {[%clk 0:02:54]}  Be6 {[%clk 0:02:45]} 13. Ne5 {[%clk 0:02:54]}  Nbd7 {[%clk 0:02:45]} 14. f4 {[%clk 0:02:54]}  b5 {[%clk 0:02:42]} 15. Rc1 {[%clk 0:02:45]}  Nb6 {[%clk 0:02:37]} 16. b3 {[%clk 0:02:45]}  a4 {[%clk 0:02:33]} 17. bxa4 {[%clk 0:02:44]}  b4 {[%clk 0:02:19]} 18. Ne2 {[%clk 0:02:43]}  Rec8 {[%clk 0:02:20]} 19. Ng3 {[%clk 0:02:36]}  Nxa4 {[%clk 0:02:15]} 20. Nf5 {[%clk 0:02:18]}  Bxf5 {[%clk 0:01:38]} 21. Bxf5 {[%clk 0:02:17]}  Rc7 {[%clk 0:01:39]} 22. Rf2 {[%clk 0:02:01]}  Nc3 {[%clk 0:01:36]} 23. Qf3 {[%clk 0:02:01]}  Rxa2 {[%clk 0:01:32]} 24. Rxa2 {[%clk 0:01:57]}  Nxa2 {[%clk 0:01:33]} 25. Ra1 {[%clk 0:01:56]}  b3 {[%clk 0:01:29]} 26. Qd1 {[%clk 0:01:48]}  Qa3 {[%clk 0:01:19]} 27. Rb1 {[%clk 0:01:37]}  Rb7 {[%clk 0:01:13]} 28. Qd3 {[%clk 0:01:30]}  Rb6 {[%clk 0:00:53]} 29. g4 {[%clk 0:01:25]}  Nc1 {[%clk 0:00:33]} 30. Qd2 {[%clk 0:01:18]}  b2 {[%clk 0:00:32]} 31. g5 {[%clk 0:01:10]}  hxg5 {[%clk 0:00:30]} 32. fxg5 {[%clk 0:01:10]}  Ne4 {[%clk 0:00:31]} 33. Bxe4 {[%clk 0:01:09]}  dxe4 {[%clk 0:00:32]} 34. Nc4 {[%clk 0:01:09]}  Qa1 {[%clk 0:00:22]} 35. Qc2 {[%clk 0:00:59]}  Rb4 {[%clk 0:00:18]} 36. Nxb2 {[%clk 0:00:58]}  Qa2 {[%clk 0:00:14]} 37. Qxc1 {[%clk 0:00:56]}  Qb3 {[%clk 0:00:14]} 38. Kf2 {[%clk 0:00:53]}  g6 {[%clk 0:00:14]} 39. Qd2 {[%clk 0:00:46]}  Rb5 {[%clk 0:00:13]} 40. h4 {[%clk 0:00:42]}  Rf5+ {[%clk 0:00:13]} 41. Kg2 {[%clk 0:00:42]}  Rb5 {[%clk 0:00:12]} 42. Kg3 {[%clk 0:00:31]}  Kg7 {[%clk 0:00:07]} 43. Kf2 {[%clk 0:00:25]}  Qe6 {[%clk 0:00:06]} 44. Qe2 {[%clk 0:00:19]}  Qh3 {[%clk 0:00:04]} 45. Ke1 {[%clk 0:00:17]}  Qh1+ {[%clk 0:00:01]} 46. Qf1 {[%clk 0:00:16]}  Qxh4+ {[%clk 0:00:02]} 47. Kd2 {[%clk 0:00:16]}  Qh2+ {[%clk 0:00:02]} 48. Qe2 {[%clk 0:00:16]}  Qd6 {[%clk 0:00:02]} 49. Nc4 {[%clk 0:00:14]} 1-0


[Site "https://www.chess.com"]

[Event "Titled Tuesday Blitz June 6 Early 2023"]
[White "FunnyDuck66"]
[Black "Girya, Olga"]
[BlackFideId "4195752"]
[WhiteElo "2435"]
[BlackElo "2263"]
[Result "0-1"]
[Round "6"]
[TimeControl "180+2"]
[Date "2023.06.06"]
[WhiteClock "0:00:04"]
[BlackClock "0:00:15"]
[Board "76"]

1. d4 {[%clk 0:02:57]}  Nf6 {[%clk 0:02:59]} 2. Nf3 {[%clk 0:02:55]}  d5 {[%clk 0:02:59]} 3. Bf4 {[%clk 0:02:55]}  c5 {[%clk 0:02:59]} 4. e3 {[%clk 0:02:55]}  Nc6 {[%clk 0:02:58]} 5. Nbd2 {[%clk 0:02:53]}  cxd4 {[%clk 0:02:57]} 6. exd4 {[%clk 0:02:54]}  Qb6 {[%clk 0:02:54]} 7. Nb3 {[%clk 0:02:54]}  Bg4 {[%clk 0:02:54]} 8. c3 {[%clk 0:02:53]}  e6 {[%clk 0:02:53]} 9. Be2 {[%clk 0:02:53]}  a5 {[%clk 0:02:45]} 10. Ne5 {[%clk 0:02:49]}  Bxe2 {[%clk 0:02:40]} 11. Qxe2 {[%clk 0:02:50]}  a4 {[%clk 0:02:27]} 12. Nc1 {[%clk 0:02:42]}  Nxe5 {[%clk 0:02:23]} 13. Bxe5 {[%clk 0:02:39]}  Be7 {[%clk 0:02:18]} 14. Nd3 {[%clk 0:02:33]}  O-O {[%clk 0:02:18]} 15. O-O {[%clk 0:02:28]}  Ne4 {[%clk 0:01:57]} 16. f3 {[%clk 0:02:22]}  Nd6 {[%clk 0:01:56]} 17. Nc5 {[%clk 0:02:12]}  Qc6 {[%clk 0:01:55]} 18. Bxd6 {[%clk 0:02:00]}  Bxd6 {[%clk 0:01:55]} 19. Nd3 {[%clk 0:02:00]}  a3 {[%clk 0:01:50]} 20. f4 {[%clk 0:01:45]}  Qc4 {[%clk 0:01:41]} 21. b3 {[%clk 0:01:25]}  Qxc3 {[%clk 0:01:40]} 22. Qe3 {[%clk 0:01:26]}  Rac8 {[%clk 0:01:20]} 23. Rac1 {[%clk 0:01:24]}  Qa5 {[%clk 0:01:19]} 24. f5 {[%clk 0:00:58]}  exf5 {[%clk 0:01:13]} 25. Rxf5 {[%clk 0:00:59]}  Rxc1+ {[%clk 0:00:56]} 26. Qxc1 {[%clk 0:01:00]}  Re8 {[%clk 0:00:47]} 27. h3 {[%clk 0:00:34]}  g6 {[%clk 0:00:41]} 28. Rf3 {[%clk 0:00:32]}  Qb6 {[%clk 0:00:31]} 29. Qc3 {[%clk 0:00:24]}  Re4 {[%clk 0:00:27]} 30. Nc5 {[%clk 0:00:25]}  Rxd4 {[%clk 0:00:19]} 31. b4 {[%clk 0:00:04]}  Rxb4 {[%clk 0:00:15]} 0-1


[Site "https://www.chess.com"]

[Event "Titled Tuesday Blitz June 6 Early 2023"]
[White "Martic, Ivan"]
[Black "Zenin, Dmitry"]
[WhiteFideId "929301"]
[BlackFideId "4127897"]
[WhiteElo "2346"]
[BlackElo "2215"]
[Result "1-0"]
[Round "6"]
[TimeControl "180+2"]
[Date "2023.06.06"]
[WhiteClock "0:00:38"]
[BlackClock "0:01:19"]
[Board "78"]

1. e4 {[%clk 0:03:00]}  e5 {[%clk 0:02:59]} 2. Nf3 {[%clk 0:03:01]}  Nc6 {[%clk 0:03:00]} 3. d3 {[%clk 0:03:01]}  Nf6 {[%clk 0:02:58]} 4. c3 {[%clk 0:03:02]}  d5 {[%clk 0:02:56]} 5. Nbd2 {[%clk 0:03:02]}  Be7 {[%clk 0:02:54]} 6. Be2 {[%clk 0:03:02]}  O-O {[%clk 0:02:54]} 7. O-O {[%clk 0:03:02]}  a5 {[%clk 0:02:54]} 8. Qc2 {[%clk 0:03:00]}  Be6 {[%clk 0:02:51]} 9. Re1 {[%clk 0:02:55]}  h6 {[%clk 0:02:51]} 10. Bf1 {[%clk 0:02:54]}  Re8 {[%clk 0:02:51]} 11. exd5 {[%clk 0:02:37]}  Qxd5 {[%clk 0:02:50]} 12. Nc4 {[%clk 0:02:37]}  Nd7 {[%clk 0:02:47]} 13. a4 {[%clk 0:02:29]}  Bf6 {[%clk 0:02:45]} 14. Nfd2 {[%clk 0:02:25]}  Rad8 {[%clk 0:02:38]} 15. Ne4 {[%clk 0:02:25]}  Be7 {[%clk 0:02:37]} 16. g3 {[%clk 0:02:09]}  Nc5 {[%clk 0:02:35]} 17. Nxc5 {[%clk 0:01:59]}  Bxc5 {[%clk 0:02:31]} 18. Be3 {[%clk 0:01:54]}  Bxe3 {[%clk 0:02:28]} 19. Rxe3 {[%clk 0:01:55]}  Bf5 {[%clk 0:02:24]} 20. Qb3 {[%clk 0:01:47]}  Qc5 {[%clk 0:02:14]} 21. Qb5 {[%clk 0:01:41]}  Rd5 {[%clk 0:02:02]} 22. Qxb7 {[%clk 0:01:20]}  Rb8 {[%clk 0:01:56]} 23. Qa6 {[%clk 0:01:09]}  Bc8 {[%clk 0:01:55]} 24. d4 {[%clk 0:01:09]}  Bxa6 {[%clk 0:01:43]} 25. dxc5 {[%clk 0:01:08]}  Rxc5 {[%clk 0:01:42]} 26. Nxe5 {[%clk 0:01:02]}  Bxf1 {[%clk 0:01:35]} 27. Nd7 {[%clk 0:01:02]}  Bh3 {[%clk 0:01:29]} 28. Nxb8 {[%clk 0:00:54]}  Ne5 {[%clk 0:01:23]} 29. b4 {[%clk 0:00:44]}  Rd5 {[%clk 0:01:20]} 30. Rxe5 {[%clk 0:00:37]}  Rxe5 {[%clk 0:01:19]} 31. Nc6 {[%clk 0:00:38]} 1-0


[Site "https://www.chess.com"]

[Event "Titled Tuesday Blitz June 6 Early 2023"]
[White "Manon-og, Ramon Jr."]
[Black "Bayo Milagro, Alvaro"]
[WhiteFideId "5200776"]
[BlackFideId "22275240"]
[WhiteElo "2385"]
[BlackElo "2270"]
[Result "0-1"]
[Round "6"]
[TimeControl "180+2"]
[Date "2023.06.06"]
[WhiteClock "0:00:06"]
[BlackClock "0:00:56"]
[Board "79"]

1. e4 {[%clk 0:02:58]}  e5 {[%clk 0:02:59]} 2. Nf3 {[%clk 0:02:58]}  Nc6 {[%clk 0:02:59]} 3. Bc4 {[%clk 0:02:58]}  Nf6 {[%clk 0:02:59]} 4. Ng5 {[%clk 0:02:58]}  d5 {[%clk 0:02:59]} 5. exd5 {[%clk 0:02:59]}  Na5 {[%clk 0:03:00]} 6. Bb5+ {[%clk 0:02:58]}  c6 {[%clk 0:03:00]} 7. dxc6 {[%clk 0:02:59]}  bxc6 {[%clk 0:03:01]} 8. Bd3 {[%clk 0:02:59]}  Ng4 {[%clk 0:03:01]} 9. h4 {[%clk 0:02:50]}  h6 {[%clk 0:02:45]} 10. Be2 {[%clk 0:02:33]}  Nxf2 {[%clk 0:02:39]} 11. Kxf2 {[%clk 0:02:33]}  Bc5+ {[%clk 0:02:33]} 12. Ke1 {[%clk 0:02:14]}  hxg5 {[%clk 0:02:31]} 13. h5 {[%clk 0:02:10]}  Qd4 {[%clk 0:02:27]} 14. d3 {[%clk 0:01:49]}  Qf2+ {[%clk 0:02:26]} 15. Kd2 {[%clk 0:01:49]}  Qf4+ {[%clk 0:02:22]} 16. Ke1 {[%clk 0:01:33]}  Bf2+ {[%clk 0:02:09]} 17. Kf1 {[%clk 0:01:33]}  Be3+ {[%clk 0:02:09]} 18. Bf3 {[%clk 0:01:33]}  Bxc1 {[%clk 0:02:10]} 19. Nc3 {[%clk 0:01:19]}  Bxb2 {[%clk 0:02:06]} 20. Ne2 {[%clk 0:01:14]}  Qf6 {[%clk 0:02:06]} 21. Rb1 {[%clk 0:01:14]}  Bd4 {[%clk 0:02:06]} 22. Nxd4 {[%clk 0:01:08]}  exd4 {[%clk 0:02:06]} 23. Qe1+ {[%clk 0:01:03]}  Be6 {[%clk 0:02:06]} 24. Qxa5 {[%clk 0:01:03]}  g4 {[%clk 0:02:07]} 25. Qc7 {[%clk 0:00:36]}  O-O {[%clk 0:02:04]} 26. h6 {[%clk 0:00:28]}  gxf3 {[%clk 0:02:02]} 27. g3 {[%clk 0:00:19]}  gxh6 {[%clk 0:01:47]} 28. Re1 {[%clk 0:00:16]}  Bd5 {[%clk 0:01:38]} 29. Rh4 {[%clk 0:00:17]}  f2 {[%clk 0:01:32]} 30. Rd1 {[%clk 0:00:13]}  Rac8 {[%clk 0:01:31]} 31. Qd7 {[%clk 0:00:12]}  Qf3 {[%clk 0:01:16]} 32. Qg4+ {[%clk 0:00:12]}  Qxg4 {[%clk 0:01:16]} 33. Rxg4+ {[%clk 0:00:13]}  Kh7 {[%clk 0:01:15]} 34. Kxf2 {[%clk 0:00:13]}  Bxa2 {[%clk 0:01:13]} 35. Ra1 {[%clk 0:00:13]}  Be6 {[%clk 0:01:13]} 36. Rxd4 {[%clk 0:00:13]}  c5 {[%clk 0:01:11]} 37. Rd6 {[%clk 0:00:12]}  Rc7 {[%clk 0:01:04]} 38. Rh1 {[%clk 0:00:07]}  Ra8 {[%clk 0:00:59]} 39. g4 {[%clk 0:00:07]}  Kg7 {[%clk 0:00:55]} 40. Rg1 {[%clk 0:00:06]}  a5 {[%clk 0:00:55]} 41. g5 {[%clk 0:00:06]}  hxg5 {[%clk 0:00:55]} 42. Rxg5+ {[%clk 0:00:07]}  Kf6 {[%clk 0:00:56]} 43. Rg1 {[%clk 0:00:07]}  a4 {[%clk 0:00:56]} 44. Ra1 {[%clk 0:00:07]}  a3 {[%clk 0:00:57]} 45. Ke3 {[%clk 0:00:06]}  a2 {[%clk 0:00:57]} 46. Rb6 {[%clk 0:00:07]}  Raa7 {[%clk 0:00:53]} 47. c3 {[%clk 0:00:07]}  Rcb7 {[%clk 0:00:53]} 48. Rc6 {[%clk 0:00:07]}  Rb1 {[%clk 0:00:52]} 49. Rxa2 {[%clk 0:00:04]}  Rxa2 {[%clk 0:00:53]} 50. d4 {[%clk 0:00:05]}  cxd4+ {[%clk 0:00:53]} 51. cxd4 {[%clk 0:00:06]}  Re1+ {[%clk 0:00:53]} 52. Kf3 {[%clk 0:00:06]}  Rd1 {[%clk 0:00:53]} 53. Ke3 {[%clk 0:00:06]}  Rad2 {[%clk 0:00:52]} 54. Rd6 {[%clk 0:00:03]}  Ke7 {[%clk 0:00:50]} 55. Ra6 {[%clk 0:00:02]}  Rd3+ {[%clk 0:00:50]} 56. Ke2 {[%clk 0:00:03]}  R1d2+ {[%clk 0:00:50]} 57. Ke1 {[%clk 0:00:02]}  Rxd4 {[%clk 0:00:51]} 58. Ra7+ {[%clk 0:00:02]}  Kf6 {[%clk 0:00:51]} 59. Ra3 {[%clk 0:00:03]}  Rh2 {[%clk 0:00:51]} 60. Rf3+ {[%clk 0:00:03]}  Ke7 {[%clk 0:00:52]} 61. Re3 {[%clk 0:00:01]}  Ra4 {[%clk 0:00:51]} 62. Kf1 {[%clk 0:00:01]}  Ra1+ {[%clk 0:00:50]} 63. Re1 {[%clk 0:00:02]}  Rxe1+ {[%clk 0:00:50]} 64. Kxe1 {[%clk 0:00:03]}  Bc4 {[%clk 0:00:51]} 65. Kd1 {[%clk 0:00:03]}  f6 {[%clk 0:00:52]} 66. Ke1 {[%clk 0:00:03]}  f5 {[%clk 0:00:53]} 67. Kd1 {[%clk 0:00:04]}  f4 {[%clk 0:00:53]} 68. Ke1 {[%clk 0:00:05]}  f3 {[%clk 0:00:54]} 69. Kd1 {[%clk 0:00:05]}  Re2 {[%clk 0:00:55]} 70. Kc1 {[%clk 0:00:05]}  f2 {[%clk 0:00:55]} 71. Kd1 {[%clk 0:00:06]}  f1=Q# {[%clk 0:00:56]} 0-1


[Site "https://www.chess.com"]

[Event "Titled Tuesday Blitz June 6 Early 2023"]
[White "Sychev, Klementy"]
[Black "Bashirli, Saadat"]
[WhiteFideId "4114060"]
[BlackFideId "13429990"]
[WhiteElo "2583"]
[BlackElo "1408"]
[Result "1-0"]
[Round "6"]
[TimeControl "180+2"]
[Date "2023.06.06"]
[WhiteClock "0:01:50"]
[BlackClock "0:01:08"]
[Board "84"]

1. e4 {[%clk 0:03:00]}  c5 {[%clk 0:02:59]} 2. Nf3 {[%clk 0:03:01]}  g6 {[%clk 0:02:59]} 3. d4 {[%clk 0:03:00]}  cxd4 {[%clk 0:02:59]} 4. Nxd4 {[%clk 0:03:01]}  Nc6 {[%clk 0:02:58]} 5. Nc3 {[%clk 0:03:01]}  Bg7 {[%clk 0:02:57]} 6. Be3 {[%clk 0:03:02]}  Nf6 {[%clk 0:02:57]} 7. Nxc6 {[%clk 0:03:02]}  bxc6 {[%clk 0:02:56]} 8. e5 {[%clk 0:03:03]}  Ng8 {[%clk 0:02:53]} 9. Bd4 {[%clk 0:03:03]}  f6 {[%clk 0:02:53]} 10. exf6 {[%clk 0:03:02]}  Nxf6 {[%clk 0:02:54]} 11. Bc4 {[%clk 0:03:02]}  d5 {[%clk 0:02:54]} 12. Bb3 {[%clk 0:03:02]}  O-O {[%clk 0:02:53]} 13. O-O {[%clk 0:03:02]}  Re8 {[%clk 0:02:51]} 14. Re1 {[%clk 0:02:51]}  Bf5 {[%clk 0:02:49]} 15. Na4 {[%clk 0:02:43]}  Nd7 {[%clk 0:02:14]} 16. Bxg7 {[%clk 0:02:23]}  Kxg7 {[%clk 0:02:12]} 17. g4 {[%clk 0:02:23]}  Be4 {[%clk 0:02:08]} 18. f3 {[%clk 0:02:23]}  Nf6 {[%clk 0:02:04]} 19. g5 {[%clk 0:02:17]}  Nh5 {[%clk 0:01:35]} 20. fxe4 {[%clk 0:02:17]}  e5 {[%clk 0:01:32]} 21. Qg4 {[%clk 0:02:14]}  d4 {[%clk 0:01:27]} 22. Rf1 {[%clk 0:02:10]}  Nf4 {[%clk 0:01:26]} 23. Nc5 {[%clk 0:02:09]}  Qb6 {[%clk 0:01:24]} 24. Nd3 {[%clk 0:01:54]}  Re7 {[%clk 0:01:09]} 25. Nxf4 {[%clk 0:01:52]}  exf4 {[%clk 0:01:08]} 26. Qxf4 {[%clk 0:01:50]}  d3+ {[%clk 0:01:08]} 27. Kh1 {[%clk 0:01:50]} 1-0


[Site "https://www.chess.com"]

[Event "Titled Tuesday Blitz June 6 Early 2023"]
[White "Kukhmazov, Arsen"]
[Black "Estrada Nieto, Julian"]
[WhiteFideId "24108260"]
[BlackFideId "5101018"]
[WhiteElo "2396"]
[BlackElo "2161"]
[Result "1-0"]
[Round "6"]
[TimeControl "180+2"]
[Date "2023.06.06"]
[WhiteClock "0:00:37"]
[BlackClock "0:00:01"]
[Board "86"]

1. d4 {[%clk 0:02:59]}  d5 {[%clk 0:02:59]} 2. c4 {[%clk 0:02:59]}  dxc4 {[%clk 0:03:00]} 3. e3 {[%clk 0:02:57]}  Nf6 {[%clk 0:03:00]} 4. Bxc4 {[%clk 0:02:56]}  e6 {[%clk 0:03:00]} 5. Ne2 {[%clk 0:02:51]}  c5 {[%clk 0:02:59]} 6. O-O {[%clk 0:02:51]}  a6 {[%clk 0:03:00]} 7. b3 {[%clk 0:02:46]}  Nc6 {[%clk 0:02:59]} 8. Bb2 {[%clk 0:02:45]}  b5 {[%clk 0:02:45]} 9. Bd3 {[%clk 0:02:44]}  Nb4 {[%clk 0:02:46]} 10. Bc2 {[%clk 0:02:31]}  Bb7 {[%clk 0:02:40]} 11. Nbc3 {[%clk 0:02:28]}  Nxc2 {[%clk 0:02:39]} 12. Qxc2 {[%clk 0:02:28]}  Rc8 {[%clk 0:02:35]} 13. dxc5 {[%clk 0:02:26]}  Bxc5 {[%clk 0:02:32]} 14. Rfd1 {[%clk 0:02:23]}  Qe7 {[%clk 0:02:32]} 15. Qd2 {[%clk 0:02:10]}  O-O {[%clk 0:02:27]} 16. Qe1 {[%clk 0:02:07]}  Rfd8 {[%clk 0:02:11]} 17. Nf4 {[%clk 0:02:08]}  Rxd1 {[%clk 0:01:56]} 18. Rxd1 {[%clk 0:02:08]}  Rd8 {[%clk 0:01:56]} 19. Nd3 {[%clk 0:02:08]}  Ba3 {[%clk 0:01:47]} 20. Ba1 {[%clk 0:02:01]}  h6 {[%clk 0:01:46]} 21. h3 {[%clk 0:02:00]}  Bd6 {[%clk 0:01:41]} 22. Ne2 {[%clk 0:02:00]}  Ne4 {[%clk 0:01:37]} 23. Ne5 {[%clk 0:01:49]}  Qg5 {[%clk 0:00:55]} 24. Nf3 {[%clk 0:01:48]}  Qe7 {[%clk 0:00:50]} 25. Ned4 {[%clk 0:01:38]}  Bb4 {[%clk 0:00:45]} 26. Qf1 {[%clk 0:01:37]}  Ng5 {[%clk 0:00:41]} 27. Qe2 {[%clk 0:01:21]}  Nxf3+ {[%clk 0:00:37]} 28. Nxf3 {[%clk 0:01:22]}  Rxd1+ {[%clk 0:00:16]} 29. Qxd1 {[%clk 0:01:22]}  Qd6 {[%clk 0:00:16]} 30. Qe2 {[%clk 0:01:11]}  Be4 {[%clk 0:00:14]} 31. Bd4 {[%clk 0:01:03]}  Qc6 {[%clk 0:00:14]} 32. Ne5 {[%clk 0:00:47]}  Qc1+ {[%clk 0:00:13]} 33. Kh2 {[%clk 0:00:48]}  Qe1 {[%clk 0:00:11]} 34. Qg4 {[%clk 0:00:42]}  Bf5 {[%clk 0:00:11]} 35. Qg3 {[%clk 0:00:42]}  f6 {[%clk 0:00:10]} 36. Nf3 {[%clk 0:00:41]}  Qd1 {[%clk 0:00:05]} 37. Bxf6 {[%clk 0:00:41]}  Bf8 {[%clk 0:00:05]} 38. Be5 {[%clk 0:00:39]}  Bb1 {[%clk 0:00:04]} 39. Nd4 {[%clk 0:00:39]}  Kf7 {[%clk 0:00:01]} 40. Qf4+ {[%clk 0:00:38]}  Ke7 {[%clk 0:00:02]} 41. Bd6+ {[%clk 0:00:37]}  Kd7 {[%clk 0:00:01]} 42. Qxf8 {[%clk 0:00:37]} 1-0


[Site "https://www.chess.com"]